{"text_format":"1","workbook":"xlsx","n_sheets":2,"sheets":["Timesheet","PART-TIME STAFF INSTRUCTIONS"],"not_rendered":{"charts":0,"images":0,"macros":1,"external_links":0,"defined_names":1,"comments":0,"pivot_tables":0},"unopened":[],"bounds":{"document_bytes":16777216,"sheet_cells":100000,"rows_first":2000,"rows_last":500,"rows_between":2000,"halvings":0,"cell_chars":16384,"cell_head_chars":4096},"cells_cut":0,"cells_raw":0,"read":"whole","date_system":"1900"}

{"sheet":"Timesheet","index":0,"n_rows":38,"n_cols":11,"rows_kept":38,"cut":false,"hidden":false,"merged":[[0,9,0,10],[20,0,21,0],[20,8,21,8],[20,9,21,9],[20,10,21,10],[1,0,2,0],[1,8,2,8],[1,9,2,9],[1,10,2,10]]}
["BI-WEEKLY TIMESHEET",null,null,null,null,null,null,null,null,"NOTE:  Once you click SUBMIT for Payroll, it is automatically sent. For confirmation, you can check your sent items."]
["DATE","2025-02-03",{"$f":"Day_One+1","v":"2025-02-04"},{"$f":"Day_One+2","v":"2025-02-05"},{"$f":"Day_One+3","v":"2025-02-06"},{"$f":"Day_One+4","v":"2025-02-07"},{"$f":"Day_One+5","v":"2025-02-08"},{"$f":"Day_One+6","v":"2025-02-09"},"TOTALS","Payroll Acronyms","DEFINITIONS"]
[null,"MON","TUE","WED","THU","FRI","SAT","SUN"]
["REG",null,null,null,null,null,null,null,{"$f":"SUM(B4:H4)","v":0},"REG","Regular Base Hospital/Trauma Program Hours"]
["REG Secondary",null,null,null,null,null,null,null,0,"REG ","Regular hours billed to other accounts (Work for other department, educational or cost Recovery e.g.EFR Training, CPR, Research)"]
["RB1.0",null,null,null,null,null,null,null,0,"RB1.0","Regular Time Banked (replaces OTB1.0) -  Do not exceed the maximum allowable as agreed to with Nicole)"]
["BEREAVEMENT",null,null,null,null,null,null,null,0,"BL","Bereavement Leave"]
["EDUCATION",null,null,null,null,null,null,null,{"$f":"SUM(B8:H8)","v":0},"ED","Education"]
["FLOAT",null,null,null,null,null,null,null,0,"STATF","Float Days, if available as per HSN Paid Holiday Schedule (on HSN website under HSN Communities/HR)"]
["STAT",null,null,null,null,null,null,null,{"$f":"SUM(B10:H10)","v":0},"STAT","Statuatory holiday as per HSN Paid Holiday Schedule (on HSN website under HSN Communities/HR)"]
["STAT WORKED",null,null,null,null,null,null,null,{"$f":"SUM(B11:H11)","v":0},"STATW","STAT Worked - Hourly Rate *1.5"]
["OT 1.5   (ONA)",null,null,null,null,null,null,null,0,"OT1.5","ONA - Overtime rate (for anything over 75 hours in a pay)"]
["OT3W   (ONA)",null,null,null,null,null,null,null,0,"OTW3P","ONA (for all weekend shifts that are the third or subsequent weekends worked)"]
["OTB1.5 (ONA)",null,null,null,null,null,null,null,0,"OTB1.5 ","ONA Banked Overtime Rate"]
["SICK",null,null,null,null,null,null,null,0,"SICI / SIC","Sick "]
["TIL",null,null,null,null,null,null,null,0,"TIL ","Utilized Banked Time"]
["VACATION",null,null,null,null,null,null,null,0,"VAC","Vacation "]
["CON",null,null,null,null,null,null,null,0,"CON","Condensed Work Week --- this code is used to reflect the day you are off as part of CWW.  These are not payable hours."]
["TOTALS",{"$f":"SUM(B4:B17)","v":0},{"$f":"SUM(C4:C17)","v":0},0,0,0,0,0,0]
[]
["DATE",{"$f":"Day_One+7","v":"2025-02-10"},{"$f":"Day_One+8","v":"2025-02-11"},{"$f":"Day_One+9","v":"2025-02-12"},{"$f":"Day_One+10","v":"2025-02-13"},{"$f":"Day_One+11","v":"2025-02-14"},{"$f":"Day_One+12","v":"2025-02-15"},{"$f":"Day_One+13","v":"2025-02-16"},"TOTALS",{"$f":"J2","v":"Payroll Acronyms"},{"$f":"K2","v":"DEFINITIONS"}]
[null,"MON","TUE","WED","THU","FRI","SAT","SUN"]
["REG",null,null,null,null,null,null,null,{"$f":"SUM(B23:H23)","v":0},"REG","Regular Base Hospital/Trauma Program Hours"]
["REG Secondary",null,null,null,null,null,null,null,{"$f":"SUM(B24:H24)","v":0},"REG ","Regular hours billed to other accounts (Work for other department, educational or cost Recovery e.g.EFR Training, CPR, Research)"]
["RB1.0",null,null,null,null,null,null,null,{"$f":"SUM(B25:H25)","v":0},"RB1.0","Regular Time Banked (replaces OTB1.0) -  Do not exceed the maximum allowable as agreed to with Nicole)"]
["BEREAVEMENT",null,null,null,null,null,null,null,{"$f":"SUM(B26:H26)","v":0},"BL","Bereavement Leave"]
["EDUCATION",null,null,null,null,null,null,null,{"$f":"SUM(B27:H27)","v":0},"ED","Education"]
["FLOAT",null,null,null,null,null,null,null,0,"STATF","Float Days, if available as per HSN Paid Holiday Schedule (on HSN website under HSN Communities/HR)"]
["STAT",null,null,null,null,null,null,null,{"$f":"SUM(B29:H29)","v":0},"STAT","Statuatory holiday as per HSN Paid Holiday Schedule (on HSN website under HSN Communities/HR)"]
["STAT WORKED",null,null,null,null,null,null,null,{"$f":"SUM(B30:H30)","v":0},"STATW","STAT Worked - Hourly Rate *1.5 "]
["OT 1.5   (ONA)",null,null,null,null,null,null,null,{"$f":"SUM(B31:H31)","v":0},"OT1.5","ONA - Overtime rate (for anything over 75 hours in a pay)"]
["OT3W   (ONA)",null,null,null,null,null,null,null,{"$f":"SUM(B32:H32)","v":0},"OTW3P","ONA (for all weekend shifts that are the third or subsequent weekends worked)"]
["OTB1.5 (ONA)",null,null,null,null,null,null,null,{"$f":"SUM(B33:H33)","v":0},"OTB1.5 ","ONA Banked Overtime rate"]
["SICK",null,null,null,null,null,null,null,0,"SICI / SIC","Sick "]
["TIL",null,null,null,null,null,null,null,0,"TIL ","Utilized Banked Time"]
["VACATION",null,null,null,null,null,null,null,0,"VAC","Vacation "]
["CON",null,null,null,null,null,null,null,0,"CON","Condensed Work Week --- this code is used to reflect the day you are off as part of CWW.  These are not payable hours."]
["TOTALS",{"$f":"SUM(B23:B36)","v":0},{"$f":"SUM(C23:C36)","v":0},0,0,0,0,0,0]

{"sheet":"PART-TIME STAFF INSTRUCTIONS","index":1,"n_rows":14,"n_cols":3,"rows_kept":14,"cut":false,"hidden":false,"merged":[[0,0,0,1],[1,0,1,1]]}
["Payroll Note for Part-time and Casual Staff:  "]
[]
["Option 1 (If you have an HSN Laptop) ","Log into VPN using your hsn username and password:"]
[null,"This is the only other method for submitting the timesheet utilizing the automated functions."]
[]
["Option 2: External/ Non-HSN Laptop","You can save the file as PDF and send by email to: "]
[null,"Miranda Bazinet","Mirbazinet@hsnsudbury.ca"]
[null,"Nicole Sykes","nsykes@hsnsudbury.ca"]
[null,"Corey Petrie","cpetrie@hsnsudbury.ca"]
[null,"Monique Lapointe","mlapointe@hsnsudbury.ca"]
[null,"Tiffany Hembruff ","thembruff@hsnsudbury.ca"]
[null,"Failing to copy above recipients can result in a delay of payment.  "]
[]
["If you experience any technical difficulties, please contact Monique Lapointe x 1614"]